bitfinex-derivatives/quotes_BTCF0:USTF0_20250912
["timestamp","ask_amount","ask_price","bid_price","bid_amount"]
[1757649680199,0.52506815,115190.0,115180.0,1.71187943]
[1757649680891,0.52506815,115190.0,115180.0,1.60267758]
[1757649681285,0.52506815,115190.0,115180.0,1.71187943]
[1757649681485,0.52506815,115190.0,115180.0,1.52551039]
[1757649681782,0.52506815,115190.0,115180.0,1.41630854]
[1757649682494,0.52506815,115190.0,115180.0,1.60267758]
[1757649682695,0.52506815,115190.0,115180.0,1.29267758]
[1757649682885,0.52506815,115190.0,115180.0,1.10630854]
[1757649685193,0.52506815,115190.0,115180.0,1.89830854]
[1757649685591,0.52506815,115190.0,115180.0,1.64830854]
[1757649687496,0.52506815,115190.0,115180.0,1.75751039]
[1757649688406,0.46308648,115190.0,115180.0,1.69552872]
[1757649689293,0.44897756,115190.0,115180.0,1.69552872]
[1757649689693,0.46905145,115190.0,115180.0,1.69552872]
[1757649690294,0.44897756,115190.0,115180.0,1.69552872]
[1757649692200,0.44897756,115190.0,115180.0,1.58632687]
[1757649694794,0.44897756,115190.0,115180.0,1.4619395]
[1757649694990,0.44897756,115190.0,115180.0,0.6699395]
[1757649695194,0.44897756,115190.0,115180.0,1.4616995]
[1757649699808,0.44897756,115190.0,115180.0,1.3616995]
[1757649703310,0.82336493,115190.0,115180.0,0.00967608]
[1757649703612,1.18416493,115190.0,115180.0,0.00967608]
[1757649704410,1.97592493,115190.0,115180.0,0.00967608]
[1757649704611,1.97292493,115190.0,115180.0,0.00867608]
[1757649704911,0.01349,115180.0,115170.0,0.80934783]
[1757649705212,0.58399474,115180.0,115170.0,0.87969901]
[1757649705411,0.58618221,115180.0,115170.0,0.88839957]
[1757649706511,0.46179484,115180.0,115170.0,0.99760142]
[1757649707013,0.46379484,115180.0,115170.0,0.99860142]
[1757649708513,0.58818221,115180.0,115170.0,0.99864142]
[1757649708914,0.46379484,115180.0,115170.0,0.99864142]
[1757649709515,0.46317373,115180.0,115170.0,1.00891142]
[1757649710013,0.5875611,115180.0,115170.0,1.00891142]
[1757649710206,0.5875611,115180.0,115170.0,0.21711142]
[1757649710816,0.46417373,115180.0,115170.0,0.21711142]
[1757649712011,0.33978636,115180.0,115170.0,0.21711142]
[1757649712211,0.5885611,115180.0,115170.0,0.21711142]
[1757649712718,0.46417373,115180.0,115170.0,0.21711142]
[1757649713218,0.5885611,115180.0,115170.0,0.21711142]
[1757649714917,0.5885611,115180.0,115170.0,0.19952359]
[1757649715918,0.46417373,115180.0,115170.0,0.19952359]
[1757649718722,0.46417373,115180.0,115170.0,0.09032174]
[1757649720416,0.5885611,115180.0,115170.0,0.19952359]
[1757649721112,0.5885611,115180.0,115170.0,0.09032174]
[1757649722220,0.5885611,115180.0,115170.0,0.01997056]
[1757649722816,0.9493611,115180.0,115170.0,0.00970056]
[1757649723012,0.96976838,115180.0,115170.0,0.00970056]
[1757649723619,0.96976838,115180.0,115170.0,0.02097056]
[1757649723821,1.21976838,115180.0,115170.0,0.00970056]
[1757649724023,1.21876838,115180.0,115170.0,0.00870056]
[1757649724325,0.03524,115170.0,115160.0,0.1908222]
[1757649724526,0.45962737,115170.0,115160.0,0.1908222]
[1757649725422,0.46181484,115170.0,115160.0,0.1908222]
[1757649726227,0.46281484,115170.0,115160.0,0.1908222]
[1757649726429,0.46381484,115170.0,115160.0,0.1908222]
[1757649727522,0.46381484,115170.0,115160.0,0.19938313]
[1757649728529,0.46381484,115170.0,115160.0,0.09018128]
[1757649729926,0.58820221,115170.0,115160.0,0.01983093]
[1757649730424,0.46381484,115170.0,115160.0,0.01983093]
[1757649732028,0.33942747,115170.0,115160.0,0.01983093]
[1757649732223,1.13126747,115170.0,115160.0,0.01983093]
[1757649732434,1.25565484,115170.0,115160.0,0.01983093]
[1757649736236,0.46381484,115170.0,115160.0,0.01983093]
[1757649736435,1.25565484,115170.0,115160.0,0.01983093]
[1757649738341,0.46381484,115170.0,115160.0,0.01983093]
[1757649738541,1.25565484,115170.0,115160.0,0.01983093]
[1757649738941,0.46381484,115170.0,115160.0,0.01983093]
[1757649739141,1.25565484,115170.0,115160.0,0.01983093]
[1757649742137,0.29007542,115170.0,115160.0,2.15508987]
[1757649743838,0.44935279,115170.0,115160.0,0.77063093]
[1757649744045,0.44935279,115170.0,115160.0,0.38063093]
[1757649744438,0.44935279,115170.0,115160.0,0.48987225]
[1757649745341,0.32496542,115170.0,115160.0,0.48987225]
[1757649745648,0.44935279,115170.0,115160.0,0.48987225]
[1757649747244,0.44935279,115170.0,115160.0,0.5050183]
[1757649747646,0.03489,115160.0,115150.0,0.27673333]
[1757649747943,0.56366474,115160.0,115150.0,0.27673333]
[1757649748454,0.56585221,115160.0,115150.0,0.12939877]
[1757649748939,0.56685221,115160.0,115150.0,0.02011958]
[1757649749135,0.56785221,115160.0,115150.0,0.02011958]
[1757649749340,0.56785221,115160.0,115150.0,0.01127]
[1757649750340,0.69249697,115160.0,115150.0,0.01127]
[1757649750846,0.69249697,115160.0,115150.0,0.01995232]
[1757649752144,0.67838347,115160.0,115150.0,0.01995232]
[1757649752351,0.69226347,115160.0,115150.0,0.01995232]
[1757649754451,0.69226347,115160.0,115150.0,0.12925112]
[1757649756942,0.69226347,115160.0,115150.0,0.01995232]
[1757649760751,0.69226347,115160.0,115150.0,0.12925112]
[1757649761247,0.69226347,115160.0,115150.0,0.11798112]
[1757649761652,0.71281619,115160.0,115150.0,0.1092988]
[1757649762062,0.03489,115150.0,115140.0,0.56291112]
[1757649762358,0.53378722,115150.0,115140.0,0.75032207]
[1757649762855,0.53378722,115150.0,115140.0,0.74032207]
[1757649763251,0.53378722,115150.0,115140.0,0.74881284]
[1757649763453,0.53578722,115150.0,115140.0,0.74981284]
[1757649763756,0.53678722,115150.0,115140.0,0.74981284]
[1757649764452,0.52267367,115150.0,115140.0,0.74981284]
[1757649764657,0.53655367,115150.0,115140.0,0.74981284]
[1757649765848,0.33596392,115150.0,115140.0,0.91726284]
[1757649766051,0.52267367,115150.0,115140.0,0.91726284]
[1757649768062,0.53655367,115150.0,115140.0,0.91726284]
[1757649768461,0.53655367,115150.0,115140.0,0.90981284]
[1757649769664,0.53655367,115150.0,115140.0,0.85910765]
[1757649769852,0.53655367,115150.0,115140.0,1.02910765]
[1757649770256,0.53655367,115150.0,115140.0,0.6723979]
[1757649770456,0.53655367,115150.0,115140.0,1.01910765]
[1757649770767,0.31518747,115150.0,115140.0,1.2132674]
[1757649770959,0.31518747,115150.0,115140.0,1.10397259]
[1757649771264,0.50189722,115150.0,115140.0,1.10397259]
[1757649771667,0.50189722,115150.0,115140.0,1.21326439]
[1757649771868,0.50189722,115150.0,115140.0,1.81831464]
[1757649772067,0.50189722,115150.0,115140.0,1.70902284]
[1757649772860,0.31518747,115150.0,115140.0,1.70902284]
[1757649773064,0.50189722,115150.0,115140.0,2.44502957]
[1757649773458,0.50189722,115150.0,115140.0,1.60231309]
[1757649773765,0.50189722,115150.0,115140.0,1.97573259]
[1757649774961,0.50189722,115150.0,115140.0,1.18397259]
[1757649775162,0.52290722,115150.0,115140.0,0.99726284]
[1757649775661,0.52290722,115150.0,115140.0,1.59482309]
[1757649775662,0.53570722,115150.0,115140.0,1.59482309]
[1757649775870,0.53570722,115150.0,115140.0,1.78153284]
[1757649776264,0.52159396,115150.0,115140.0,1.78153284]
[1757649777169,0.52159396,115150.0,115140.0,0.98981284]
[1757649777469,0.52159396,115150.0,115140.0,1.78153284]
[1757649779477,0.52159396,115150.0,115140.0,1.89095678]
[1757649780779,0.33488421,115150.0,115140.0,1.89095678]
[1757649781079,0.52159396,115150.0,115140.0,1.89095678]
[1757649784386,0.52159396,115150.0,115140.0,1.78153284]
[1757649785086,0.52159396,115150.0,115140.0,1.89095678]
[1757649786386,0.52159396,115150.0,115140.0,1.78153284]
[1757649786885,0.52159396,115150.0,115140.0,1.89095678]
[1757649787689,0.52159396,115150.0,115140.0,2.07766653]
[1757649787888,0.33488421,115150.0,115140.0,2.07766653]
[1757649788083,0.52159396,115150.0,115140.0,2.07766653]
[1757649788283,0.52159396,115150.0,115140.0,2.30824259]
[1757649788686,0.52159396,115150.0,115140.0,1.58482309]
[1757649788985,0.52159396,115150.0,115140.0,1.77153284]
[1757649791189,0.52159396,115150.0,115140.0,1.58482309]
[1757649791390,0.52159396,115150.0,115140.0,1.77153284]
[1757649792390,0.52159396,115150.0,115140.0,1.95824259]
[1757649793991,0.52159396,115150.0,115140.0,1.77153284]
[1757649794892,0.52159396,115150.0,115140.0,1.77898284]
[1757649797099,0.52159396,115150.0,115140.0,1.88840678]
[1757649797294,0.52159396,115150.0,115140.0,2.07511653]
[1757649799093,0.50879396,115150.0,115140.0,1.96569259]
[1757649800898,0.32208421,115150.0,115140.0,1.96569259]
[1757649801099,0.50879396,115150.0,115140.0,1.96569259]
[1757649801498,0.30107421,115150.0,115140.0,2.54569259]
[1757649801798,0.30107421,115150.0,115140.0,2.81922084]
[1757649802000,0.28696105,115150.0,115140.0,2.92849587]
[1757649802399,0.28696105,115150.0,115140.0,2.28940084]
[1757649802593,0.28696105,115150.0,115140.0,2.39867522]
[1757649802796,0.28696105,115150.0,115140.0,3.33419522]
[1757649802997,0.28696105,115150.0,115140.0,3.19019522]
[1757649803398,0.28696105,115150.0,115140.0,3.08092084]
[1757649803603,0.28696105,115150.0,115140.0,3.19019914]
[1757649804503,0.28696105,115150.0,115140.0,2.39867914]
[1757649804703,0.28696105,115150.0,115140.0,3.19015914]
[1757649805298,0.28696105,115150.0,115140.0,3.08088084]
[1757649806003,0.28696105,115150.0,115140.0,2.28940084]
[1757649806196,0.28696105,115150.0,115140.0,3.08084084]
[1757649806397,0.28696105,115150.0,115140.0,2.28940084]
[1757649806809,0.28696105,115150.0,115140.0,2.43389309]
[1757649807008,0.28696105,115150.0,115140.0,3.00342213]
[1757649807410,0.28696105,115150.0,115140.0,2.75338213]
[1757649808605,0.28696105,115150.0,115140.0,2.28329109]
[1757649808812,0.28696105,115150.0,115140.0,3.00489109]
[1757649809310,0.28696105,115150.0,115140.0,3.00485109]
[1757649810311,0.28696105,115150.0,115140.0,3.11415259]
[1757649810910,0.28696105,115150.0,115140.0,3.30086234]
[1757649812410,0.28696105,115150.0,115140.0,2.98956639]
[1757649813807,0.28696105,115150.0,115140.0,2.88956639]
[1757649814813,0.28696105,115150.0,115140.0,2.78026489]
[1757649815406,0.18196105,115150.0,115140.0,2.90468154]
[1757649815604,0.11196105,115150.0,115140.0,3.14723154]
[1757649815811,0.00904952,115170.0,115160.0,0.0868034]
[1757649816012,0.00904952,115170.0,115160.0,2.63222308]
[1757649816013,0.17904952,115170.0,115160.0,2.63222308]
[1757649816206,0.17904952,115170.0,115160.0,2.50780643]
[1757649816712,0.17904952,115170.0,115160.0,2.3985167]
[1757649816912,0.18004952,115170.0,115160.0,2.3985167]
[1757649817412,0.18004952,115170.0,115160.0,2.50775314]
[1757649817612,0.18104952,115170.0,115160.0,2.50975314]
[1757649820621,0.18104952,115170.0,115160.0,2.4005167]
[1757649822326,0.18104952,115170.0,115160.0,2.6624167]
[1757649822921,0.18104952,115170.0,115160.0,2.4005167]
[1757649823429,0.18104952,115170.0,115160.0,2.55670084]
[1757649823829,0.18104952,115170.0,115160.0,2.68111749]
[1757649824929,0.07860477,115170.0,115160.0,2.68111749]
[1757649825127,0.282,115170.0,115160.0,2.68111749]
[1757649825328,0.29514,115170.0,115160.0,2.68111749]
[1757649826131,0.29514,115170.0,115160.0,1.88983749]
[1757649826331,0.29514,115170.0,115160.0,2.68091749]
[1757649827823,0.29514,115170.0,115160.0,1.88983749]
[1757649828026,0.29514,115170.0,115160.0,2.68087749]
[1757649828223,0.29514,115170.0,115160.0,2.68083749]
[1757649829036,0.29514,115170.0,115160.0,2.81832084]
[1757649829638,0.29514,115170.0,115160.0,2.6621367]
[1757649830029,0.28103152,115170.0,115160.0,2.6621367]
[1757649830240,0.01388,115180.0,115170.0,0.00636848]
[1757649830540,0.31388,115180.0,115170.0,1.2280245]
[1757649830740,0.31388,115180.0,115170.0,1.21054625]
[1757649830932,0.31388,115180.0,115170.0,1.35244115]
[1757649831332,0.31388,115180.0,115170.0,2.14340115]
[1757649831733,0.31488,115180.0,115170.0,2.14440115]
[1757649831927,0.56488,115180.0,115170.0,1.2290245]
[1757649832133,0.56488,115180.0,115170.0,2.0199845]
[1757649832339,0.68929665,115180.0,115170.0,1.10460785]
[1757649832529,0.71175665,115180.0,115170.0,0.78460785]
[1757649832836,0.71175665,115180.0,115170.0,1.57552785]
[1757649834236,0.71175665,115180.0,115170.0,0.78460785]
[1757649834438,0.8361733,115180.0,115170.0,1.15908848]
[1757649834641,0.71175665,115180.0,115170.0,1.15908848]
[1757649834844,0.8361733,115180.0,115170.0,1.15908848]
[1757649835145,0.71175665,115180.0,115170.0,1.15908848]
[1757649836443,0.8361733,115180.0,115170.0,1.15908848]
[1757649845538,0.71175665,115180.0,115170.0,1.15908848]
[1757649849540,0.71175665,115180.0,115170.0,1.28350513]
[1757649850549,0.58734,115180.0,115170.0,1.28350513]
[1757649850843,0.71175665,115180.0,115170.0,1.27713665]
[1757649851242,0.58734,115180.0,115170.0,1.48713665]
[1757649851444,0.71175665,115180.0,115170.0,1.48713665]
[1757649852150,0.58734,115180.0,115170.0,1.48713665]
[1757649853749,0.33734,115180.0,115170.0,1.48713665]
[1757649853944,0.33734,115180.0,115170.0,2.11713665]
[1757649855548,0.46175665,115180.0,115170.0,0.5818]
[1757649855849,0.46175665,115180.0,115170.0,1.37252]
[1757649858851,0.46175665,115180.0,115170.0,1.49693665]
[1757649859049,0.46175665,115180.0,115170.0,0.70621665]
[1757649859249,0.33734,115180.0,115170.0,1.49689665]
[1757649859649,0.33734,115180.0,115170.0,1.60585777]
[1757649860454,0.33734,115180.0,115170.0,1.49689665]
[1757649861750,0.33734,115180.0,115170.0,1.60585777]
[1757649863757,0.33734,115180.0,115170.0,1.49689665]
[1757649866359,0.33734,115180.0,115170.0,1.15248]
[1757649866560,0.33734,115180.0,115170.0,1.43689665]
[1757649868765,0.33734,115180.0,115170.0,1.27689665]
[1757649869062,0.33734,115180.0,115170.0,1.45689665]
[1757649872264,0.33734,115180.0,115170.0,1.56626265]
[1757649872566,0.33734,115180.0,115170.0,1.45689665]
[1757649872864,0.33734,115180.0,115170.0,1.56628026]
[1757649874457,0.52392344,115180.0,115170.0,1.60844705]
[1757649875163,0.31588,115180.0,115170.0,1.97844705]
[1757649875362,0.31588,115180.0,115170.0,2.30564688]
[1757649877076,0.3152999,115180.0,115170.0,2.30564688]
[1757649878060,0.3152999,115180.0,115170.0,2.39244278]
[1757649878666,0.3152999,115180.0,115170.0,2.54862692]
[1757649879361,0.3152999,115180.0,115170.0,2.29862692]
[1757649879571,0.3152999,115180.0,115170.0,2.56052692]
[1757649880167,0.3152999,115180.0,115170.0,1.68305102]
[1757649880467,0.3152999,115180.0,115170.0,2.56024692]
[1757649881069,0.3152999,115180.0,115170.0,2.40406278]
[1757649884975,0.3152999,115180.0,115170.0,1.52686688]
[1757649885175,0.3152999,115180.0,115170.0,2.13056344]
[1757649885471,0.3152999,115180.0,115170.0,2.4264552]
[1757649887269,0.3152999,115180.0,115170.0,1.44959176]
[1757649887469,0.30119099,115180.0,115170.0,2.23983176]
[1757649887774,0.30119099,115180.0,115170.0,2.13052344]
[1757649888973,0.30119099,115180.0,115170.0,2.31710688]
[1757649889180,0.30119099,115180.0,115170.0,2.40390278]
[1757649891278,0.30119099,115180.0,115170.0,2.14200278]
[1757649894768,0.30119099,115180.0,115170.0,2.29818692]
[1757649894968,0.30119099,115180.0,115170.0,2.21139102]
[1757649895577,0.30119099,115180.0,115170.0,2.05520688]
[1757649897288,0.30119099,115180.0,115170.0,2.31710688]
[1757649897985,0.30119099,115180.0,115170.0,2.31694688]
[1757649898584,0.30119099,115180.0,115170.0,1.52686688]
[1757649898884,0.30119099,115180.0,115170.0,2.31690688]
[1757649901578,0.28708233,115180.0,115170.0,2.31690688]
[1757649902186,0.28708233,115180.0,115170.0,1.52686688]
[1757649902378,0.28708233,115180.0,115170.0,2.31686688]
[1757649902578,0.28708233,115180.0,115170.0,1.52686688]
[1757649902779,0.28708233,115180.0,115170.0,2.31686688]
[1757649902979,0.28708233,115180.0,115170.0,1.52686688]
[1757649903588,0.28708233,115180.0,115170.0,2.31686688]
[1757649903778,0.28708233,115180.0,115170.0,2.47305102]
[1757649905387,0.28708233,115180.0,115170.0,2.31686688]
[1757649907189,0.28708233,115180.0,115170.0,1.9437]
[1757649907391,0.28708233,115180.0,115170.0,2.31686688]
[1757649910389,0.28708233,115180.0,115170.0,2.47305102]
[1757649910980,0.28708233,115180.0,115170.0,2.31686688]
[1757649913686,0.27297367,115180.0,115170.0,2.31686688]
[1757649914091,0.27297367,115180.0,115170.0,2.47305102]
[1757649914805,0.25944367,115180.0,115170.0,3.10574621]
[1757649915098,0.01327,115200.0,115180.0,0.10406568]
[1757649915302,0.32327,115200.0,115190.0,1.99387415]
[1757649915490,0.32327,115200.0,115190.0,2.52387415]
[1757649916297,0.32427,115200.0,115190.0,2.52387415]
[1757649916799,0.32427,115200.0,115190.0,2.41456688]
[1757649917300,0.32427,115200.0,115190.0,1.69414097]
[1757649917494,0.32427,115200.0,115190.0,2.48390097]
[1757649917898,0.32727,115200.0,115190.0,2.48390097]
[1757649918699,0.32727,115200.0,115190.0,2.48490097]
[1757649918700,0.32627,115200.0,115190.0,2.48490097]
[1757649920403,0.32627,115200.0,115190.0,2.59419969]
[1757649921798,0.32627,115200.0,115190.0,2.22095281]
[1757649921999,0.32627,115200.0,115190.0,2.59411969]
[1757649922200,0.32627,115200.0,115190.0,2.22095281]
[1757649922699,0.32627,115200.0,115190.0,2.59411969]
[1757649924006,0.32627,115200.0,115190.0,1.69514097]
[1757649924206,0.32627,115200.0,115190.0,2.48478097]
[1757649924699,0.32627,115200.0,115190.0,2.29819753]
[1757649925400,0.51285344,115200.0,115190.0,2.29819753]
[1757649926210,0.51285344,115200.0,115190.0,2.4074739]
[1757649926900,0.51285344,115200.0,115190.0,1.43125046]
[1757649927100,0.51285344,115200.0,115190.0,2.4074339]
[1757649927911,0.51285344,115200.0,115190.0,1.6178339]
[1757649928105,0.94943688,115200.0,115190.0,2.22085046]
[1757649928313,0.99123248,115200.0,115190.0,0.5092338]
[1757649928604,0.99123248,115200.0,115190.0,0.96921046]
[1757649929298,0.99123248,115200.0,115190.0,0.17965046]
[1757649929505,0.99123248,115200.0,115190.0,0.89983637]
[1757649929908,1.35203248,115200.0,115190.0,0.89983637]
[1757649930506,1.35203248,115200.0,115190.0,0.97789891]
[1757649930704,1.35203248,115200.0,115190.0,0.86862254]
[1757649931209,1.35203248,115200.0,115190.0,0.07906254]
[1757649931602,1.35203248,115200.0,115190.0,0.86862254]
[1757649932409,1.35203248,115200.0,115190.0,0.07906254]
[1757649932713,1.53861592,115200.0,115190.0,0.86861545]
[1757649933008,1.35203248,115200.0,115190.0,0.86861545]
[1757649934112,1.35203248,115200.0,115190.0,0.07905545]
[1757649934306,1.53861592,115200.0,115190.0,0.86861545]
[1757649934510,1.22768462,115200.0,115190.0,0.86861545]
[1757649934811,1.22768462,115200.0,115190.0,0.07905545]
[1757649935711,2.72768462,115200.0,115190.0,0.001]
[1757649935913,2.92108739,115200.0,115190.0,0.001]
[1757649936115,0.16000951,115190.0,115180.0,0.78956]
[1757649936307,0.45000951,115190.0,115180.0,0.89883637]
[1757649937717,0.45200951,115190.0,115180.0,0.89983637]
[1757649938515,0.45300951,115190.0,115180.0,0.89983637]
[1757649940208,0.45300951,115190.0,115180.0,0.97784136]
[1757649940407,0.45300951,115190.0,115180.0,0.79056]
[1757649940615,0.3286,115190.0,115180.0,0.79056]
[1757649940815,0.45300951,115190.0,115180.0,0.79056]
[1757649941316,0.45300951,115190.0,115180.0,0.86856007]
[1757649942112,0.45300951,115190.0,115180.0,0.86856006]
[1757649944320,0.45300951,115190.0,115180.0,0.79056]
[1757649945419,0.45300951,115190.0,115180.0,0.86854618]
[1757649948113,0.45300951,115190.0,115180.0,0.79056]
[1757649952824,0.45300951,115190.0,115180.0,0.001]
[1757649953317,0.93821902,115190.0,115180.0,0.79052]
[1757649953519,0.93821902,115190.0,115180.0,0.001]
[1757649953722,1.72773902,115190.0,115180.0,0.001]
[1757649955525,1.73626405,115190.0,115180.0,0.001]
[1757649957127,1.72773902,115190.0,115180.0,0.001]
[1757649958322,0.01308,115170.0,115160.0,0.3608]
[1757649958521,0.01308,115170.0,115160.0,1.35032]
[1757649958522,0.44899951,115170.0,115160.0,1.35032]
[1757649958825,0.44899951,115170.0,115160.0,1.45959637]
[1757649959723,0.44999951,115170.0,115160.0,1.45959637]
[1757649959919,0.45099951,115170.0,115160.0,1.46259637]
[1757649961627,0.45099951,115170.0,115160.0,1.35332]
[1757649962420,0.45099951,115170.0,115160.0,1.46259637]
[1757649962820,0.45099951,115170.0,115160.0,1.35332]
[1757649964228,0.45099951,115170.0,115160.0,0.003]
[1757649964422,0.45099951,115170.0,115160.0,0.79252]
[1757649965235,0.81179951,115170.0,115160.0,0.79252]
[1757649965932,0.45099951,115170.0,115160.0,0.79252]
[1757649966633,0.45099951,115170.0,115160.0,0.79248]
[1757649967935,0.45099951,115170.0,115160.0,1.15328]
[1757649968432,0.32659,115170.0,115160.0,1.15328]
[1757649968637,0.45099951,115170.0,115160.0,1.15328]
[1757649977345,0.45099951,115170.0,115160.0,1.26255637]
[1757649990958,0.45099951,115170.0,115160.0,1.15328]
[1757649991457,0.45099951,115170.0,115160.0,1.26255637]
[1757649992362,0.43014951,115170.0,115160.0,1.26255637]
[1757649993658,0.45243951,115170.0,115160.0,0.47307637]
[1757649993853,0.45243951,115170.0,115160.0,1.26239637]
[1757649995759,0.43014951,115170.0,115160.0,1.26239637]
[1757649996465,0.49240137,115170.0,115160.0,1.26239637]
[1757649998260,0.49240137,115170.0,115160.0,1.46239637]
[1757650002464,0.95135274,115170.0,115160.0,0.11227637]
[1757650002670,1.67295274,115170.0,115160.0,0.003]
[1757650003956,1.67195274,115170.0,115160.0,0.10927637]
[1757650004167,1.67295274,115170.0,115160.0,0.11027637]
[1757650004468,1.67295274,115170.0,115160.0,0.001]
[1757650005966,2.46219274,115170.0,115160.0,0.001]
[1757650017470,1.74055274,115170.0,115160.0,0.001]
[1757650019070,0.32803,115170.0,115160.0,0.001]
[1757650019275,0.51469137,115170.0,115160.0,0.421]
[1757650019472,0.70135274,115170.0,115160.0,0.421]
[1757650019673,0.70135274,115170.0,115160.0,0.53027637]
[1757650020673,0.51469137,115170.0,115160.0,0.53027637]
[1757650021674,0.70135274,115170.0,115160.0,0.53027637]
[1757650021875,0.70135274,115170.0,115160.0,1.31943637]
[1757650023377,0.70135274,115170.0,115160.0,0.36027637]
[1757650023579,1.06215274,115170.0,115160.0,1.14943637]
[1757650025080,1.06215274,115170.0,115160.0,0.36027637]
[1757650025269,1.06215274,115170.0,115160.0,0.001]
[1757650025475,1.85127274,115170.0,115160.0,0.001]
[1757650031477,2.03793411,115170.0,115150.0,0.10927637]
[1757650031681,0.58166137,115160.0,115150.0,0.10927637]
[1757650031880,0.94153064,115160.0,115150.0,0.10927637]
[1757650032484,0.94153064,115160.0,115140.0,1.26768714]
[1757650032683,0.01295,115150.0,115140.0,1.49768714]
[1757650032885,0.32295,115150.0,115140.0,1.49768714]
[1757650035598,0.69627274,115150.0,115140.0,1.49768714]
[1757650035790,0.69827274,115150.0,115140.0,1.49768714]
[1757650036092,0.69927274,115150.0,115140.0,1.49768714]
[1757650037293,0.69927274,115150.0,115140.0,1.13688714]
[1757650037492,0.72052274,115150.0,115140.0,0.70856714]
[1757650037694,0.72052274,115150.0,115140.0,1.49772714]
[1757650039502,0.71852274,115150.0,115140.0,1.49772714]
[1757650039694,0.71952274,115150.0,115140.0,1.49772714]
[1757650042401,0.71952274,115150.0,115140.0,0.70856714]
[1757650042596,0.71952274,115150.0,115140.0,1.49772714]
[1757650042797,0.71952274,115150.0,115140.0,1.26772714]
[1757650044107,0.71952274,115150.0,115140.0,0.47856714]
[1757650044292,0.71952274,115150.0,115140.0,1.26772714]
[1757650044494,0.71952274,115150.0,115140.0,0.47856714]
[1757650044695,0.71952274,115150.0,115140.0,1.26772714]
[1757650046994,0.71952274,115150.0,115140.0,1.15845077]
[1757650047400,0.71952274,115150.0,115140.0,0.79765077]
[1757650047897,0.71952274,115150.0,115140.0,0.00849077]
[1757650048201,0.71952274,115150.0,115140.0,0.78916]
[1757650048702,0.71952274,115150.0,115130.0,0.3608]
[1757650049000,0.40881274,115140.0,115130.0,0.5808]
[1757650049202,0.74881274,115140.0,115130.0,1.36996]
[1757650050200,0.75081274,115140.0,115130.0,1.36996]
[1757650050795,0.75081274,115140.0,115130.0,1.47923637]
[1757650051400,0.75181274,115140.0,115130.0,1.48784806]
[1757650052797,0.37849,115140.0,115130.0,0.69868806]
[1757650053002,0.75181274,115140.0,115130.0,1.48784806]
[1757650053801,0.37849,115140.0,115130.0,1.48784806]
[1757650054101,0.75181274,115140.0,115130.0,1.48784806]
[1757650056100,0.37849,115140.0,115130.0,1.48784806]
[1757650056301,0.75181274,115140.0,115130.0,1.37857169]
[1757650058501,0.62748536,115140.0,115130.0,1.37857169]
[1757650059102,0.50298768,115140.0,115130.0,1.65857169]
[1757650062000,0.50298768,115140.0,115130.0,1.76784806]
[1757650068704,0.62748536,115140.0,115130.0,1.76784806]
[1757650068907,0.50298768,115140.0,115130.0,1.76784806]
[1757650069806,0.62748536,115140.0,115130.0,1.76784806]
[1757650070305,0.62748536,115140.0,115130.0,1.65857169]
[1757650070807,0.50298768,115140.0,115130.0,1.65857169]
[1757650071607,0.50298768,115140.0,115130.0,0.97868806]
[1757650071812,0.50298768,115140.0,115130.0,1.76780806]
[1757650072910,0.50298768,115140.0,115130.0,1.65853169]
[1757650076511,0.5023721,115140.0,115130.0,1.65853169]
[1757650077408,0.5023721,115140.0,115130.0,0.86941169]
[1757650077610,0.5023721,115140.0,115130.0,1.65849169]
[1757650080509,0.37787442,115140.0,115130.0,1.78298937]
[1757650080714,0.3565,115140.0,115130.0,2.15748705]
[1757650081008,0.3565,115140.0,115130.0,2.03298937]
[1757650081214,0.343,115140.0,115130.0,2.24431285]
[1757650082312,0.343,115140.0,115130.0,1.20623749]
[1757650082509,0.343,115140.0,115130.0,2.11977517]
[1757650082704,0.343,115140.0,115130.0,1.33073517]
[1757650082905,0.343,115140.0,115130.0,1.24390937]
[1757650083103,0.343,115140.0,115130.0,2.03294937]
[1757650084313,0.343,115140.0,115130.0,0.99390937]
[1757650084615,0.3565,115140.0,115130.0,1.78294937]
[1757650084820,0.3565,115140.0,115130.0,0.97874124]
[1757650084821,0.50252768,115140.0,115130.0,0.97874124]
[1757650085116,0.50252768,115140.0,115130.0,1.65845169]
[1757650087918,0.37803,115140.0,115130.0,1.78294937]
[1757650088118,0.3565,115140.0,115130.0,1.78294937]
[1757650088318,0.34238498,115140.0,115130.0,1.78294937]
[1757650088525,0.32888498,115140.0,115130.0,2.24427295]
[1757650088820,0.32888498,115140.0,115130.0,2.11977527]
[1757650089012,0.32888498,115140.0,115130.0,2.24427295]
[1757650089213,0.32888498,115140.0,115130.0,2.35359782]
[1757650089622,0.32888498,115140.0,115130.0,2.27595941]
[1757650092020,0.32888498,115140.0,115130.0,2.15146173]
[1757650092219,0.32888498,115140.0,115130.0,2.27595941]
[1757650092916,0.32888498,115140.0,115130.0,2.53785941]
[1757650093718,0.32888498,115140.0,115130.0,2.66235709]
[1757650095821,0.32888498,115140.0,115130.0,1.87331709]
[1757650096021,0.32888498,115140.0,115130.0,2.66223709]
[1757650098323,0.3147719,115140.0,115130.0,2.66223709]
[1757650100017,0.3147719,115140.0,115130.0,2.41324173]
[1757650100223,0.3147719,115140.0,115130.0,2.66223709]
[1757650100822,0.3147719,115140.0,115130.0,2.66219709]
[1757650104825,0.3147719,115140.0,115130.0,1.87331709]
[1757650105021,0.3147719,115140.0,115130.0,2.53769941]
[1757650105330,0.3147719,115140.0,115130.0,1.66199351]
[1757650105629,0.3147719,115140.0,115130.0,2.45087351]
[1757650106931,0.3277919,115140.0,115130.0,1.41199351]
[1757650107133,0.3277919,115140.0,115130.0,2.20083351]
[1757650108235,0.3277919,115140.0,115130.0,1.41199351]
[1757650108532,0.31367849,115140.0,115130.0,1.41199351]
[1757650108733,0.31367849,115140.0,115130.0,2.20083351]
[1757650109033,0.31367849,115140.0,115130.0,2.28765941]
[1757650109830,0.31367849,115140.0,115130.0,1.41199351]
[1757650110132,0.31367849,115140.0,115130.0,2.20083351]
[1757650110729,0.31367849,115140.0,115130.0,2.15398783]
[1757650114634,0.31367849,115140.0,115130.0,2.02949015]
[1757650114934,0.31367849,115140.0,115130.0,2.15398783]
[1757650115124,0.31367849,115140.0,115130.0,2.04464937]
[1757650115435,0.31367849,115140.0,115130.0,2.20083351]
[1757650116837,0.31367849,115140.0,115130.0,2.56163351]
[1757650117536,0.31367849,115140.0,115130.0,1.64829583]
[1757650117726,0.31367849,115140.0,115130.0,2.56159351]
[1757650118634,0.31367849,115140.0,115130.0,2.40540937]
[1757650119733,0.43817617,115140.0,115130.0,1.61660937]
[1757650119934,0.43817617,115140.0,115130.0,2.40536937]
[1757650120229,0.43817617,115140.0,115130.0,1.49211169]
[1757650120536,0.7362984,115140.0,115130.0,2.46760571]
[1757650121135,0.7362984,115140.0,115130.0,2.62378985]
[1757650121323,0.7362984,115140.0,115130.0,1.64829583]